Cogmind - Beta 11.1 @@@ ROGUE MODE // 2022.06.25 @ 05:28:12 Player: Hanyouslayer Result: Destroyed by G-47 Trooper with Particle Gun Performance ------------- Evolutions (0) 0 Regions Visited (2) 400 Robots Destroyed (13) 65 Value Destroyed (307) 307 Prototype IDs (0) 0 Alien Tech Used (0) 0 Bonus (0) 0 TOTAL SCORE: 772 Bonus ------- None Cogmind --------- Core Integrity 0/250 Matter 284/300 Energy 250/250 System Corruption 0% Temperature Warm (120) Movement Core (1550) Ox30 Location -10/Mines Parts ------- > --- POWER (1) -------- Ion Engine > --- PROPULSION (2) --- Compact Wheel > --- UTILITY (2) ------ Heat Sink Huge Storage Unit > --- WEAPON (2) ------- Beam Cannon Light Cannon > --- INVENTORY (25) --- Ion Engine Ion Engine Light Nuclear Core Light Treads Light Treads Aluminum Leg Aluminum Leg Compact Wheel Terrain Scanner Light Armor Plating Light Armor Plating Light Armor Plating Light Armor Plating Medium Laser Assault Rifle Light Assault Rifle Light Cannon Light Cannon Hammer Hammer Peak State ------------ > --- POWER ------------ Ion Engine > --- PROPULSION ------- Compact Wheel Compact Wheel > --- UTILITY ---------- Huge Storage Unit Terrain Scanner > --- WEAPON ----------- Light Assault Rifle Light Cannon > --- INVENTORY -------- Ion Engine Light Nuclear Core Light Treads Light Treads Aluminum Leg Aluminum Leg Compact Wheel Light Armor Plating Light Armor Plating Light Armor Plating EM Pulse Gun Medium Laser Beam Cannon Assault Rifle Light Cannon Light Cannon Hammer Hammer [Rating: 9] Favorites ----------- Power Ion Engine Engine Ion Engine Propulsion Compact Wheel Treads Light Treads Wheel Compact Wheel Utility Huge Storage Unit Device Terrain Scanner Storage Huge Storage Unit Weapon Light Cannon Energy Gun Medium Laser Energy Cannon Beam Cannon Ballistic Gun Light Assault Rifle Ballistic Cannon Light Cannon Build | -11 -10 -10 ------- Run | Scr Mat Min Slots Evolved . | . . . Power . | . . . Propulsion . | . . . Utility . | . . . Weapon . | . . . Parts Attached 19 | 7 6 6 Power 2 | 1 . 1 Engine 2 | 1 . 1 Core . | . . . Reactor . | . . . Propulsion 6 | 2 2 2 Treads 1 | . . 1 Leg . | . . . Wheel 5 | 2 2 1 Hover . | . . . Flight . | . . . Utility 4 | 1 2 1 Device 2 | . 1 1 Storage 2 | 1 1 . Processor . | . . . Hackware . | . . . Protection . | . . . Artifact . | . . . Weapon 7 | 3 2 2 Energy Gun 3 | 2 . 1 Energy Cannon 1 | . . 1 Ballistic Gun 2 | 1 1 . Ballistic Cannon 1 | . 1 . Launcher . | . . . Special Weapon . | . . . Impact Weapon . | . . . Slashing Weapon . | . . . Piercing Weapon . | . . . Special Melee Weapon . | . . . Unidentified Prototypes . | . . . Parts Lost 4 | . 1 3 Power . | . . . Propulsion 3 | . 1 2 Utility . | . . . Weapon 1 | . . 1 Highest Loss Streak 1 | . 1 1 To Critical Strikes . | . . . Average Slot Usage (%) 92 | . 92 91 Engine 14 | . 14 14 Wheel 25 | . 25 25 Device 8 | . 9 8 Storage 14 | . 14 14 Energy Gun 7 | . 10 . Energy Cannon 4 | . . 12 Ballistic Gun 4 | . 6 . Ballistic Cannon 11 | . 10 14 Naked Turns . | . . . Heaviest Build 92 | 14 91 92 Greatest Support 32 | 26 32 32 Greatest Overweight (x) 5 | . 5 5 Average Overweight (x) 2 | . 2 4 Largest Inventory Capacity 25 | 8 25 25 Average Capacity 23 | 6 24 25 Most Carried 20 | 6 19 20 Average Carried 11 | 3 9 18 Final Capacity 25 | 8 25 25 Final Carried 20 | 6 19 20 Class Distribution -------------------- 100% | Mutant Dominant Class ---------------- Mutant | -10/Materials Mutant | -10/Mines Resources | -11 -10 -10 ----------- Run | Scr Mat Min Matter Collected 527 | 174 155 198 Remotely . | . . . Salvage Created 602 | . 196 406 Parts 20 | . 10 10 Haulers Intercepted . | . . . Recyclers Shooed . | . . . Parts Field Recycled . | . . . Retrieved Matter . | . . . Parts Self-Destructed . | . . . Prevented . | . . . Kills | -11 -10 -10 ------- Run | Scr Mat Min Combat Hostiles Destroyed 9 | . 5 4 Guns 3 | . 3 . Cannons 6 | . 2 4 Classes Destroyed 3 | . 3 . Recycler 4 | . 1 3 Swarmer 3 | . 3 . Grunt 6 | . 2 4 Best Kill Streak 3 | . 2 3 Combat Bots Only 2 | . 2 2 Max Kills in Single Turn 1 | . 1 1 Gunslinging . | . . . Exploded . | . . . Melee . | . . . Uniques/NPCs Destroyed . | . . . Combat | -11 -10 -10 -------- Run | Scr Mat Min Damage Taken 681 | . 326 355 Core 256 | . 154 102 Absorbed by Shields . | . . . Core Remaining (%) 100 | 100 . . Volleys Fired 50 | . 23 27 Largest 2 | . 2 2 Hottest 95 | . 85 95 Shots Fired 99 | . 46 53 Gun 36 | . 32 4 Cannon 63 | . 14 49 Launcher . | . . . Special . | . . . Kinetic 52 | . 25 27 Thermal 43 | . 21 22 Explosive . | . . . Electromagnetic 4 | . . 4 Robot Hit Streak 8 | . 7 8 Robot Miss Streak 7 | . 4 7 Penetration Max . | . . . Secondary Targets . | . . . Shots Hit Robots 53 | . 27 26 Core Hits 22 | . 10 12 Critical Kills . | . . . Critical Parts Destroyed . | . . . Critical Strikes 6 | . 2 4 Burn 2 | . 2 . Blast 4 | . . 4 Melee Attacks . | . . . Impact . | . . . Slashing . | . . . Piercing . | . . . Sneak Attacks . | . . . Combat Hostiles . | . . . Follow-up Attacks . | . . . Damage Inflicted 824 | . 356 468 Guns 234 | . 196 38 Cannons 581 | . 160 421 Explosions . | . . . Melee . | . . . Ramming 9 | . . 9 Kinetic 466 | . 203 263 Thermal 311 | . 153 158 Explosive . | . . . Electromagnetic 38 | . . 38 Impact . | . . . Slashing . | . . . Piercing . | . . . Highest Corruption . | . . . Average Corruption . | . . . Corruption Purged . | . . . Corruption Blocked . | . . . Overload Shots . | . . . Overflow Damage . | . . . Projectiles . | . . . Explosions . | . . . Melee . | . . . Knockbacks 5 | . 1 4 Impact . | . . . Kinetic 4 | . 1 3 Secondary 1 | . . 1 Self-Inflicted Damage 4 | . . 4 Shots . | . . . Rammed 1 | . . 1 Targets Rammed 1 | . . 1 Kicked . | . . . Crushed . | . . . Highest Temperature 403 | . 403 388 Average Temperature 148 | . 158 141 Received Heat Transfer 345 | . 144 201 Effects 2 | . 2 . Shutdowns 1 | . 1 . Energy Bleed 1 | . 1 . Siege Activations . | . . . Robots Corrupted . | . . . Combat Hostiles . | . . . Parts Fried . | . . . Impact Corruptions . | . . . Robots Melted . | . . . Combat Hostiles . | . . . Parts Melted 1 | . 1 . Heat Transferred 925 | . 592 333 Parts Sabotaged . | . . . Parts Stolen . | . . . Parts Stripped . | . . . Power Chain Reactions . | . . . Missiles Intercepted . | . . . Alert | -11 -10 -10 ------- Run | Scr Mat Min Peak Influence 138 | . 138 130 Initial 5 | . . 5 Average 70 | . 68 91 Maximum Alert Level . | . . . Low Security (%) 100 | 100 100 100 Level 1 . | . . . Level 2 . | . . . Level 3 . | . . . Level 4 . | . . . Level 5 . | . . . High Security . | . . . Max Security . | . . . Squads Dispatched 1 | . 1 . Investigation 1 | . 1 . Extermination . | . . . Reinforcement . | . . . Assault . | . . . Garrison . | . . . Intercept . | . . . Searches Triggered . | . . . Construction Impeded . | . . . Haulers Reinforced . | . . . Active Scanning Responses . | . . . Cargo Convoy Interrupts . | . . . Stealth | -11 -10 -10 --------- Run | Scr Mat Min Distress Signals 2 | . 2 . Communications Jammed . | . . . Distress Signals . | . . . Times Spotted 17 | . 11 6 Peak Tracking Total 3 | . 3 2 Tactical Retreats . | . . . Traps | -11 -10 -10 ------- Run | Scr Mat Min Traps Triggered . | . . . Indirectly . | . . . Trap Hack Attempts . | . . . Triggered . | . . . Disarmed . | . . . Reprogrammed . | . . . Reused . | . . . Traps Extracted . | . . . Installed . | . . . Triggered . | . . . Machines | -11 -10 -10 ---------- Run | Scr Mat Min Machines Disabled 1 | . . 1 Max in Single Turn 1 | . . 1 Machines Sabotaged . | . . . Garrisons Compromised . | . . . Overloaded Fab Kills . | . . . Hacking | -11 -10 -10 --------- Run | Scr Mat Min Machines Accessed 2 | . 2 . Terminals 2 | . 2 . Fabricators . | . . . Repair Stations . | . . . Recycling Units . | . . . Scanalyzers . | . . . Garrison Access . | . . . Total Hacks 4 | . 4 . Successful 1 | . 1 . Failed 3 | . 3 . Catastrophic . | . . . Database Lockouts . | . . . Manual 1 | . 1 . Terminals 4 | . 4 . Fabricators . | . . . Repair Stations . | . . . Recycling Units . | . . . Scanalyzers . | . . . Garrison Access . | . . . Terminal Hacks 1 | . 1 . Zone Layout 1 | . 1 . Fabricator Hacks . | . . . Repair Station Hacks . | . . . Recycling Unit Hacks . | . . . Scanalyzer . | . . . Garrison Access Hacks . | . . . Unauthorized Hacks . | . . . Terminals . | . . . Fabricators . | . . . Repair Stations . | . . . Recycling Units . | . . . Scanalyzers . | . . . Garrison Access . | . . . Data Cores Recovered . | . . . Used . | . . . Hacking Detections 1 | . 1 . Full Trace Events 1 | . 1 . Feedback Events . | . . . Feedback Blocked . | . . . Robot Schematics Acquired . | . . . Robots Built . | . . . Authchips . | . . . Time . | . . . Total Robot Build Rating . | . . . Part Schematics Acquired . | . . . Parts Built . | . . . Authchips . | . . . Time . | . . . Total Part Build Rating . | . . . Parts Repaired . | . . . Time . | . . . Parts Recycled . | . . . Recycled Matter . | . . . Retrieved Matter . | . . . Retrieved Components . | . . . Parts Scanalyzed . | . . . Part Schematics Acquired . | . . . Parts Damaged . | . . . Bothacking | -11 -10 -10 ------------ Run | Scr Mat Min Used RIF Installer . | . . . Robots Hacked . | . . . Non-combat . | . . . Combat . | . . . Robot Hacks Applied . | . . . Relay Couplers Released . | . . . Fabnet Peak Effective % . | . . . Robots Rewired . | . . . Allies Hacked . | . . . Hacks Repelled . | . . . Allies | -11 -10 -10 -------- Run | Scr Mat Min Total Allies . | . . . Largest Group . | . . . Highest-Rated Group . | . . . Highest-Rated Ally . | . . . Total Orders . | . . . Ally Attacks . | . . . Total Damage . | . . . Kills . | . . . Allies Corrupted . | . . . Allies Melted . | . . . Intel | -11 -10 -10 ------- Run | Scr Mat Min Robot Analysis Total . | . . . Derelict Logs Recovered . | . . . Drone Launches . | . . . Drone Recoveries . | . . . Exploration | -11 -10 -10 ------------- Run | Scr Mat Min Turns Passed 721 | 54 447 220 Spaces Moved 366 | 37 254 75 Core 1 | 1 . . Treads . | . . . Legs . | . . . Wheels 365 | 36 254 75 Hover . | . . . Flight . | . . . Fastest Speed 50 | 50 90 130 Average Speed 136 | 89 136 163 Slowest Speed 175 | 100 175 175 Overloaded Moves . | . . . Propulsion Burnouts . | . . . Robots Hopped . | . . . Cave-ins Triggered . | . . . Exploration Rate (%) 25 | 4 47 24 Regions Visited 2 Branch Regions 1 Pre-discovered Areas . | . . . Known Exits Taken . | . . . Unknown Exits Taken 2 | 1 1 . Scrap Searched . | . . . Spaces Dug . | . . . Terrain Destroyed . | . . . Melee . | . . . Projectile . | . . . AOE . | . . . Terrain Rammed . | . . . Walls Destroyed . | . . . Machines Disabled . | . . . Actions | -11 -10 -10 --------- Run | Scr Mat Min Total 481 | 55 309 117 Wait 25 | 5 14 6 Move 364 | 36 253 75 Hop . | . . . Pick Up 18 | 6 11 1 Fast Attach 11 | 6 4 1 Attach 3 | 1 . 2 Detach 3 | 1 1 1 Swap 5 | . 2 3 Drop 1 | . 1 . Fire 50 | . 23 27 Melee . | . . . Ram 1 | . . 1 Kick . | . . . Crush . | . . . Escape Stasis . | . . . Rewire . | . . . Trap . | . . . Miscellaneous . | . . . Route ------- -11/Scrapyard -10/Materials -10/Mines (discovered 2 exits: [*Mat x2]) History --------- Turn | Location | Event 10 | -11/Scrapyard | Discovered new exit (range 15) 55 | -11/Scrapyard | Entered Materials 235 | -10/Materials | Discovered new exit (range 13) 309 | -10/Materials | Build established: Mutant 387 | -10/Materials | Core integrity fell below 50% 502 | -10/Materials | Entered Mines 613 | -10/Mines | Discovered new exit (range 6) 706 | -10/Mines | Discovered new exit (range 12) 709 | -10/Mines | Core integrity fell below 20% 722 | -10/Mines | Destroyed by G-47 Trooper with Particle Gun Last Messages --------------- 00613_ R-06 Scavenger collects Aluminum Leg. 00627_ Acquired Com. Wheel. 00628_ R-06 Scavenger destroyed. 00631_ Acquired 4 matter. 00651_ R-06 Scavenger destroyed. 00662_ Acquired 14 matter. 00663_ K-01 Serf collects debris. 00666_ Acquired Heat Sink. 00667_ Acquired 10 matter. 00668_ K-01 Serf collects debris. 00673_ R-06 Scavenger collects Tractor Beam. 00676_ R-06 Scavenger collects Aluminum Leg. 00680_ K-01 Serf collects debris. 00681_ R-06 Scavenger collects Aluminum Leg. 00684_ R-06 Scavenger collects Lgt. Ion Engine. 00685_ K-01 Serf collects debris. 00706_ EXIT=FOUND 00707_ Pulverizer disabled. 00708_ Com. Wheel destroyed. 00719_ G-47 Trooper knocked back. Map ----- +----------------------------------------------------+ | ???#######????????????????????????? | | ??## ###??????????????????????? | | ### ##?????????????????????? | | %!= ##????????????????????? | | =%[! #????????????????????? | | ### #??####???? ?????????? | | ??## ##?## ##??? ?????????? | | ???## ###??# ##?? ?????????? | | ???# #????? ##? ###??????? | | ????# ####??# ?? #??????? | | ????# #### #???# #??????? | | ????## ## #???# #??????? | | ?????### ##??# #??????? | | ???????## % ##?# #??????? | | ????????## """ ### #??????? | | ?????????#### % """ ## #??????? | | ????????????## """ ## #??????? | | ?????????????# """ ## #??????? | | ?????????????# #??????? | | ?????????????# ### ### #??????? | | ?????????????#####?####?# #??????? | | ????????????????????????# #??????? | | ????????????????????????# #??????? | | ????????????????????????# #??????? | | ????????????????????????# #??????? | | ????????????????????????#@ #??????? | | ??????????????????????? #????? | | ????????????????????? g #????? | | ??????????????????? % #????? | | ????????????????? #????? | | ??????????????? g ????? | | ????????????? < """ "" ???? | | ????????????# """ """ # ??? | | ????????????? """ """ # #?? | | ????????????? ????""" """ #? #?? | | ???????????????????? ?? #? #?? | | ???????????????????##???##### ??#?? | | ????????????????????????????? ????? | | ????????????????????????????? ????? | | ??????????????????????????????????? | | ??????????????????????????????????? | | ??????????????????????????????????? | | ??????????????????????????????????? | | ??????????????????????????????????? | | ??????????????????????????????????? | | ??????????????????????????????????? | | ??????????????????????????????????? | | ??????????????????????????????????? | | ??????????????????????????????????? | | ??????????????????????????????????? | +----------------------------------------------------+ Best States ------------- Heat Dissipation 35 Energy Generation 10 Energy Capacity 250 Matter Stores 300 Matter Capacity 300 Sight Range 16 Terrain Scan Range 14 Terrain Scan Density 10 Evasion (%) 42 Recoil Reduction 1 Item Schematics ----------------- None Robot Schematics ------------------ None Fabricated ------------ Nothing Alien Tech Used ----------------- None Achievements -------------- None Challenges ------------ None Game ------ Seed BehemothXenonPit Manual? 0 Play Time 00:10:10 Cumulative 38.4 hours Start 2022.06.25 @ 05:20:08 End 2022.06.25 @ 05:28:12 Sessions 1 Manual Loads 0 Difficulty Rogue Special Mode None Game No. 22 Rogue 19 Adventurer 0 Explorer 3 Win Type - Total 1 Types 1/0/0/0/0/0/0/0/0 Lore% 22 Gallery% 38 Achievement% 30 Wizard Run 0 Options --------- ASCII 0 Keyboard 0 Movement Mouse Keybinds 0 Fullscreen 1 Font 18/SmallcapsGlow Map View 76x50 Tactical HUD 1 Map Filters NONE Filters NONE Steam 0 RUN: 21a0eb69-ff12-4f1a-8b1a-a579878c7286